fUSD/lending_fUSD_20250911
["ID","MTS","AMOUNT","RATE_DAILY","PERIOD"]
[384941237,1757629860994,-400.0,0.00027671,7]
[384941238,1757629861003,-346.61200502,0.00027671,7]
[384941239,1757629861012,-400.0,0.00027671,7]
[384941240,1757629861029,-640.78,0.00027671,7]
[384941241,1757629861040,-400.0,0.00027671,7]
[384941242,1757629861050,-400.0,0.00027671,7]
[384941243,1757629861059,-400.0,0.00027671,7]
[384941244,1757629861068,-151.0,0.00027671,7]
[384941245,1757629861077,-400.0,0.00027671,7]
[384941246,1757629861087,-400.0,0.00027671,7]
[384941247,1757629861095,-400.0,0.00027671,7]
[384941248,1757629861104,-151.0,0.00027671,7]
[384941249,1757629861114,-400.0,0.00027671,7]
[384941250,1757629861123,-151.0,0.00027671,7]
[384941251,1757629861132,-400.0,0.00027671,7]
[384941252,1757629861142,-670.72,0.00027671,7]
[384941253,1757629861151,-151.0,0.00027671,7]
[384941254,1757629861160,-540.59,0.00027671,7]
[384941255,1757629861169,-151.0,0.00027671,7]
[384941256,1757629861177,-400.0,0.00027671,7]
[384941257,1757629861187,-400.0,0.00027671,7]
[384941258,1757629861196,-151.0,0.00027671,7]
[384941259,1757629861205,-1474.83,0.00027671,7]
[384941260,1757629861214,-400.0,0.00027671,7]
[384941261,1757629861223,-151.0,0.00027671,7]
[384941262,1757629861232,-151.0,0.00027671,7]
[384941263,1757629861242,-400.0,0.00027671,7]
[384941264,1757629861251,-151.0,0.00027671,7]
[384941265,1757629861261,-151.0,0.00027671,7]
[384941266,1757629861270,-151.0,0.00027671,7]
[384941267,1757629861279,-493.94,0.00027671,7]
[384941268,1757629861291,-400.0,0.00027671,7]
[384941269,1757629861299,-151.0,0.00027671,7]
[384941270,1757629861308,-151.0,0.00027671,7]
[384941271,1757629861318,-400.0,0.00027671,7]
[384941272,1757629861327,-400.0,0.00027671,7]
[384941273,1757629861338,-157.214405,0.00027671,7]
[384941274,1757629861348,-899.41,0.00027671,7]
[384941275,1757629861357,-400.0,0.00027671,7]
[384941276,1757629861367,-1123.47,0.00027671,7]
[384941277,1757629861377,-270.44638,0.00027671,7]
[384941278,1757629861386,-400.0,0.00027671,7]
[384941279,1757629861396,-270.44638,0.00027671,7]
[384941280,1757629861405,-939.32,0.00027671,7]
[384941281,1757629861414,-421.21571124,0.00027671,7]
[384941282,1757629861423,-270.44638,0.00027671,7]
[384941283,1757629861433,-325.033614,0.00027671,7]
[384941284,1757629861442,-270.44638,0.00027671,7]
[384941285,1757629861452,-400.0,0.00027671,7]
[384941286,1757629861461,-325.033614,0.00027671,7]
[384941287,1757629861471,-400.0,0.00027671,7]
[384941288,1757629861481,-151.0,0.00027671,7]
[384941289,1757629861491,-325.033614,0.00027671,7]
[384941290,1757629861500,-400.0,0.00027671,7]
[384941291,1757629861510,-400.0,0.00027671,7]
[384941292,1757629861520,-1133.84,0.00027671,7]
[384941293,1757629861530,-1216.65,0.00027671,7]
[384941294,1757629861539,-554.64,0.00027671,7]
[384941295,1757629861548,-325.033614,0.00027671,7]
[384941296,1757629861557,-400.0,0.00027671,7]
[384941297,1757629861566,-354.71657722,0.00027671,7]
[384941298,1757629861576,-429.25,0.00027671,7]
[384941299,1757629861585,-400.0,0.00027671,7]
[384941300,1757629861595,-400.0,0.00027671,7]
[384941301,1757629861605,-703.79,0.00027671,7]
[384941302,1757629861619,-400.0,0.00027671,7]
[384941303,1757629861629,-254.59189118,0.00027671,7]
[384941304,1757629861641,-1156.72,0.00027671,7]
[384941305,1757629861651,-1441.26,0.00027671,7]
[384941306,1757629861661,-400.0,0.00027671,7]
[384941307,1757629861671,-402.15672823,0.00027671,7]
[384941308,1757629861681,-766.67,0.00027671,7]
[384941309,1757629861691,-400.0,0.00027671,7]
[384941310,1757629861701,-400.0,0.00027671,7]
[384941311,1757629861710,-400.0,0.00027671,7]
[384941312,1757629861720,-1075.0,0.00027671,7]
[384941313,1757629861729,-400.0,0.00027671,7]
[384941314,1757629861738,-400.0,0.00027671,7]
[384941315,1757629861747,-400.0,0.00027671,7]
[384941316,1757629861758,-412.63,0.00027671,7]
[384941317,1757629861768,-1135.57,0.00027671,7]
[384941318,1757629861778,-400.0,0.00027671,7]
[384941319,1757629861789,-400.0,0.00027671,7]
[384941320,1757629861799,-197.09064122,0.00027671,7]
[384941321,1757629861808,-400.0,0.00027671,7]
[384941322,1757629861819,-400.0,0.00027671,7]
[384941323,1757629861828,-708.41,0.00027671,7]
[384941324,1757629861838,-497.85,0.00027671,7]
[384941325,1757629861847,-585.39,0.00027671,7]
[384941326,1757629861857,-400.0,0.00027671,7]
[384941327,1757629861870,-400.0,0.00027671,7]
[384941328,1757629861879,-400.0,0.00027671,7]
[384941329,1757629861889,-529.67,0.00027671,7]
[384941330,1757629861899,-972.93,0.00027671,7]
[384941331,1757629861908,-400.0,0.00027671,7]
[384941332,1757629861917,-436.17,0.00027671,7]
[384941333,1757629861926,-151.0,0.00027671,7]
[384941334,1757629861935,-621.55,0.00027671,7]
[384941335,1757629861944,-409.02020799,0.00027671,7]
[384941336,1757629861954,-400.0,0.00027671,7]
[384941337,1757629861963,-422.96,0.00027671,7]
[384941338,1757629861972,-400.0,0.00027671,7]
[384941339,1757629861981,-400.0,0.00027671,7]
[384941340,1757629861991,-1083.62,0.00027671,7]
[384941341,1757629862000,-812.86,0.00027671,7]
[384941342,1757629862009,-765.3,0.00027671,7]
[384941343,1757629862018,-400.0,0.00027671,7]
[384941344,1757629862027,-863.97,0.00027671,7]
[384941345,1757629862036,-436.27394862,0.00027671,7]
[384941346,1757629862045,-151.0,0.00027671,7]
[384941347,1757629862054,-151.0,0.00027671,7]
[384941348,1757629862063,-151.0,0.00027671,7]
[384941349,1757629862072,-400.0,0.00027671,7]
[384941350,1757629862081,-151.0,0.00027671,7]
[384941351,1757629862090,-400.0,0.00027671,7]
[384941352,1757629862099,-1718.95,0.00027671,7]
[384941353,1757629862112,-151.0,0.00027671,7]
[384941354,1757629862121,-1177.07,0.00027671,7]
[384941355,1757629862130,-400.0,0.00027671,7]
[384941356,1757629862139,-270.958572,0.00027671,7]
[384941357,1757629862148,-991.27,0.00027671,7]
[384941358,1757629862157,-155.166425,0.00027671,7]
[384941359,1757629862166,-998.7,0.00027671,7]
[384941360,1757629862175,-151.0,0.00027671,7]
[384941361,1757629862185,-270.958572,0.00027671,7]
[384941362,1757629862194,-986.16,0.00027671,7]
[384941363,1757629862203,-270.958572,0.00027671,7]
[384941364,1757629862212,-151.0,0.00027671,7]
[384941365,1757629862221,-151.0,0.00027671,7]
[384941366,1757629862230,-270.958572,0.00027671,7]
[384941367,1757629862239,-151.0,0.00027671,7]
[384941368,1757629862248,-400.0,0.00027671,7]
[384941369,1757629862258,-429.34,0.00027671,7]
[384941370,1757629862267,-151.0,0.00027671,7]
[384941371,1757629862276,-1410.34,0.00027671,7]
[384941372,1757629862289,-151.0,0.00027671,7]
[384941373,1757629862299,-151.0,0.00027671,7]
[384941374,1757629862308,-400.0,0.00027671,7]
[384941375,1757629862317,-151.0,0.00027671,7]
[384941376,1757629862327,-1311.0,0.00027671,7]
[384941377,1757629862336,-237.445398,0.00027671,7]
[384941378,1757629862345,-1167.0,0.00027671,7]
[384941379,1757629862356,-881.03,0.00027671,7]
[384941380,1757629862367,-513.69,0.00027671,7]
[384941381,1757629862376,-400.0,0.00027671,7]
[384941382,1757629862385,-151.0,0.00027671,7]
[384941383,1757629862395,-151.0,0.00027671,7]
[384941384,1757629862404,-237.445398,0.00027671,7]
[384941385,1757629862414,-1237.08,0.00027671,7]
[384941386,1757629862423,-151.0,0.00027671,7]
[384941387,1757629862432,-151.0,0.00027671,7]
[384941388,1757629862442,-443.54,0.00027671,7]
[384941389,1757629862451,-237.445398,0.00027671,7]
[384941390,1757629862461,-237.445398,0.00027671,7]
[384941391,1757629862470,-1042.31,0.00027671,7]
[384941392,1757629862479,-151.0,0.00027671,7]
[384941393,1757629862488,-400.0,0.00027671,7]
[384941394,1757629862498,-400.0,0.00027671,7]
[384941395,1757629862507,-151.0,0.00027671,7]
[384941396,1757629862516,-445.48,0.00027671,7]
[384941397,1757629862526,-400.0,0.00027671,7]
[384941398,1757629862535,-151.0,0.00027671,7]
[384941399,1757629862545,-400.0,0.00027671,7]
[384941400,1757629862555,-1424.55,0.00027671,7]
[384941401,1757629862565,-400.0,0.00027671,7]
[384941402,1757629862575,-294.467726,0.00027671,7]
[384941403,1757629862584,-400.0,0.00027671,7]
[384941404,1757629862594,-976.72,0.00027671,7]
[384941405,1757629862604,-1088.28,0.00027671,7]
[384941406,1757629862615,-151.0,0.00027671,7]
[384941407,1757629862625,-1120.01,0.00027671,7]
[384941408,1757629862635,-763.15,0.00027671,7]
[384941409,1757629862644,-400.0,0.00027671,7]
[384941410,1757629862654,-512.64,0.00027671,7]
[384941411,1757629862664,-279.39117642,0.00027671,7]
[384941412,1757629862674,-400.0,0.00027671,7]
[384941413,1757629862683,-400.0,0.00027671,7]
[384941414,1757629862692,-400.0,0.00027671,7]
[384941415,1757629862702,-421.66467221,0.00027671,7]
[384941416,1757629862711,-400.0,0.00027671,7]
[384941417,1757629862721,-400.0,0.00027671,7]
[384941418,1757629862730,-400.0,0.00027671,7]
[384941419,1757629862741,-1068.32,0.00027671,7]
[384941420,1757629862750,-400.0,0.00027671,7]
[384941421,1757629862761,-532.99,0.00027671,7]
[384941422,1757629862966,-1408.08,0.00027671,7]
[384941423,1757629862976,-2032.46,0.00027671,7]
[384941424,1757629862986,-154.846436,0.00027671,7]
[384941425,1757629862995,-783.06,0.00027671,7]
[384941426,1757629863005,-1599.9,0.00027671,7]
[384941427,1757629863015,-400.0,0.00027671,7]
[384941428,1757629863024,-400.0,0.00027671,7]
[384941429,1757629863034,-400.0,0.00027671,7]
[384941430,1757629863044,-400.0,0.00027671,7]
[384941431,1757629863054,-401.68330408,0.00027671,7]
[384941432,1757629863065,-559.21,0.00027671,7]
[384941433,1757629863074,-400.0,0.00027671,7]
[384941434,1757629863084,-400.0,0.00027671,7]
[384941435,1757629863095,-658.77,0.00027671,7]
[384941436,1757629863105,-400.0,0.00027671,7]
[384941437,1757629863116,-400.0,0.00027671,7]
[384941438,1757629863126,-794.92,0.00027671,7]
[384941439,1757629863136,-253.733726,0.00027671,7]
[384941440,1757629863146,-400.0,0.00027671,7]
[384941441,1757629863156,-151.0,0.00027671,7]
[384941442,1757629863166,-1240.2,0.00027671,7]
[384941443,1757629863177,-400.0,0.00027671,7]
[384941444,1757629863187,-633.59,0.00027671,7]
[384941445,1757629863197,-151.0,0.00027671,7]
[384941446,1757629863207,-151.0,0.00027671,7]
[384941447,1757629863216,-400.0,0.00027671,7]
[384941448,1757629863226,-400.0,0.00027671,7]
[384941449,1757629863236,-400.0,0.00027671,7]
[384941450,1757629863247,-813.83,0.00027671,7]
[384941451,1757629863257,-400.0,0.00027671,7]
[384941452,1757629863267,-975.97,0.00027671,7]
[384941453,1757629863277,-593.34,0.00027671,7]
[384941454,1757629863289,-151.0,0.00027671,7]
[384941455,1757629863301,-1420.41,0.00027671,7]
[384941456,1757629863311,-151.0,0.00027671,7]
[384941457,1757629863321,-593.68,0.00027671,7]
[384941458,1757629863331,-1044.39,0.00027671,7]
[384941459,1757629863341,-400.0,0.00027671,7]
[384941460,1757629863351,-400.0,0.00027671,7]
[384941461,1757629863361,-400.0,0.00027671,7]
[384941462,1757629863373,-400.0,0.00027671,7]
[384941463,1757629863383,-400.0,0.00027671,7]
[384941464,1757629863394,-151.0,0.00027671,7]
[384941465,1757629863404,-400.0,0.00027671,7]
[384941466,1757629863414,-400.0,0.00027671,7]
[384941467,1757629863424,-151.0,0.00027671,7]
[384941468,1757629863434,-400.0,0.00027671,7]
[384941469,1757629863444,-637.44,0.00027671,7]
[384941470,1757629863455,-1080.32,0.00027671,7]
[384941471,1757629863465,-151.0,0.00027671,7]
[384941472,1757629863475,-1211.94,0.00027671,7]
[384941473,1757629863485,-400.0,0.00027671,7]
[384941474,1757629863495,-400.0,0.00027671,7]
[384941475,1757629863505,-400.0,0.00027671,7]
[384941476,1757629863516,-400.0,0.00027671,7]
[384941477,1757629863526,-1216.04,0.00027671,7]
[384941478,1757629863536,-164.927789,0.00027671,7]
[384941479,1757629863546,-1116.76,0.00027671,7]
[384941480,1757629863556,-164.927789,0.00027671,7]
[384941481,1757629863567,-400.0,0.00027671,7]
[384941482,1757629863577,-456.94,0.00027671,7]
[384941483,1757629863587,-712.33,0.00027671,7]
[384941484,1757629863597,-400.0,0.00027671,7]
[384941485,1757629863608,-1190.6,0.00027671,7]
[384941486,1757629863618,-164.927789,0.00027671,7]
[384941487,1757629863628,-1339.3,0.00027671,7]
[384941488,1757629863638,-758.67,0.00027671,7]
[384941489,1757629863649,-151.0,0.00027671,7]
[384941490,1757629863658,-1713.86,0.00027671,7]
[384941491,1757629863668,-164.927789,0.00027671,7]
[384941492,1757629863678,-1510.14,0.00027671,7]
[384941493,1757629863687,-400.0,0.00027671,7]
[384941494,1757629863697,-400.0,0.00027671,7]
[384941495,1757629863707,-958.78,0.00027671,7]
[384941496,1757629863717,-400.0,0.00027671,7]
[384941497,1757629863727,-437.021515,0.00027671,7]
[384941498,1757629863737,-599.779935,0.00027671,7]
[384941499,1757629863747,-400.0,0.00027671,7]
[384941500,1757629863758,-506.96,0.00027671,7]
[384941501,1757629863767,-437.021515,0.00027671,7]
[384941502,1757629863777,-599.779935,0.00027671,7]
[384941503,1757629863787,-400.0,0.00027671,7]
[384941504,1757629863797,-437.021515,0.00027671,7]
[384941505,1757629863807,-599.779935,0.00027671,7]
[384941506,1757629863817,-478.73473226,0.00027671,7]
[384941507,1757629863828,-400.0,0.00027671,7]
[384941508,1757629863838,-400.0,0.00027671,7]
[384941509,1757629863849,-437.021515,0.00027671,7]
[384941510,1757629863859,-400.0,0.00027671,7]
[384941511,1757629863875,-599.779935,0.00027671,7]
[384941512,1757629863887,-1161.36,0.00027671,7]
[384941513,1757629863897,-400.0,0.00027671,7]
[384941514,1757629863908,-400.0,0.00027671,7]
[384941515,1757629863920,-763.82,0.00027671,7]
[384941516,1757629863932,-151.0,0.00027671,7]
[384941517,1757629863943,-427.27,0.00027671,7]
[384941518,1757629863953,-417.41,0.00027671,7]
[384941519,1757629863965,-400.0,0.00027671,7]
[384941520,1757629863976,-961.23,0.00027671,7]
[384941521,1757629863987,-400.0,0.00027671,7]
[384941522,1757629863997,-400.0,0.00027671,7]
[384941523,1757629864008,-1007.92,0.00027671,7]
[384941524,1757629864018,-151.0,0.00027671,7]
[384941525,1757629864028,-151.0,0.00027671,7]
[384941526,1757629864038,-151.0,0.00027671,7]
[384941527,1757629864048,-412.43,0.00027671,7]
[384941528,1757629864058,-468.1450216,0.00027671,7]
[384941529,1757629864070,-298.291588,0.00027671,7]
[384941530,1757629864081,-180.55825,0.00027671,7]
[384941531,1757629864091,-567.91,0.00027671,7]
[384941532,1757629864101,-151.0,0.00027671,7]
[384941533,1757629864112,-180.55825,0.00027671,7]
[384941534,1757629864122,-510.1062991,0.00027671,7]
[384941535,1757629864132,-400.0,0.00027671,7]
[384941536,1757629864142,-151.988879,0.00027671,7]
[384941537,1757629864151,-1382.83,0.00027671,7]
[384941538,1757629864161,-180.55825,0.00027671,7]
[384941539,1757629864171,-529.35706551,0.00027671,7]
[384941540,1757629864181,-298.627526,0.00027671,7]
[384941541,1757629864192,-180.55825,0.00027671,7]
[384941542,1757629864203,-1177.99,0.00027671,7]
[384941543,1757629864213,-956.02,0.00027671,7]
[384941544,1757629864222,-400.0,0.00027671,7]
[384941545,1757629864232,-400.0,0.00027671,7]
[384941546,1757629864242,-1391.95,0.00027671,7]
[384941547,1757629864253,-400.0,0.00027671,7]
[384941548,1757629864263,-1038.23,0.00027671,7]
[384941549,1757629864273,-400.0,0.00027671,7]
[384941550,1757629864283,-400.0,0.00027671,7]
[384941551,1757629864297,-1369.21,0.00027671,7]
[384941552,1757629864307,-895.22,0.00027671,7]
[384941553,1757629864317,-419.1466416,0.00027671,7]
[384941554,1757629864327,-400.0,0.00027671,7]
[384941555,1757629864337,-293.41088,0.00027671,7]
[384941556,1757629864347,-293.41088,0.00027671,7]
[384941557,1757629864357,-759.19,0.00027671,7]
[384941558,1757629864371,-151.0,0.00027671,7]
[384941559,1757629864381,-793.369091,0.00027671,7]
[384941560,1757629864391,-151.0,0.00027671,7]
[384941561,1757629864400,-793.369091,0.00027671,7]
[384941562,1757629864410,-1379.45,0.00027671,7]
[384941563,1757629864420,-293.41088,0.00027671,7]
[384941564,1757629864430,-400.0,0.00027671,7]
[384941565,1757629864440,-293.41088,0.00027671,7]
[384941566,1757629864449,-678.27,0.00027671,7]
[384941567,1757629864460,-793.369091,0.00027671,7]
[384941568,1757629864470,-793.369091,0.00027671,7]
[384941569,1757629864480,-293.41088,0.00027671,7]
[384941570,1757629864491,-151.0,0.00027671,7]
[384941571,1757629864500,-293.41088,0.00027671,7]
[384941572,1757629864510,-151.0,0.00027671,7]
[384941573,1757629864521,-276.25185,0.00027671,7]
[384941574,1757629864531,-276.25185,0.00027671,7]
[384941575,1757629864540,-185.584307,0.00027671,7]
[384941576,1757629864551,-151.0,0.00027671,7]
[384941577,1757629864560,-293.41088,0.00027671,7]
[384941578,1757629864570,-400.0,0.00027671,7]
[384941579,1757629864580,-793.369091,0.00027671,7]
[384941580,1757629864590,-1372.61,0.00027671,7]
[384941581,1757629864600,-151.0,0.00027671,7]
[384941582,1757629864609,-151.0,0.00027671,7]
[384941583,1757629864619,-293.41088,0.00027671,7]
[384941584,1757629864628,-793.369091,0.00027671,7]
[384941585,1757629864637,-276.25185,0.00027671,7]
[384941586,1757629864646,-151.0,0.00027671,7]
[384941587,1757629864656,-276.25185,0.00027671,7]
[384941588,1757629864666,-185.584307,0.00027671,7]
[384941589,1757629864675,-151.0,0.00027671,7]
[384941590,1757629864685,-793.369091,0.00027671,7]
[384941591,1757629864695,-151.0,0.00027671,7]
[384941592,1757629864704,-151.0,0.00027671,7]
[384941593,1757629864714,-151.0,0.00027671,7]
[384941594,1757629864723,-793.369091,0.00027671,7]
[384941595,1757629864732,-151.0,0.00027671,7]
[384941596,1757629864742,-276.25185,0.00027671,7]
[384941597,1757629864751,-276.25185,0.00027671,7]
[384941598,1757629864761,-400.0,0.00027671,7]
[384941599,1757629864771,-1500.51,0.00027671,7]
[384941600,1757629864784,-1225.404666,0.00027671,7]
[384941601,1757629864794,-185.584307,0.00027671,7]
[384941602,1757629864804,-817.86,0.00027671,7]
[384941603,1757629864814,-249.158628,0.00027671,7]
[384941604,1757629864823,-1225.404666,0.00027671,7]
[384941605,1757629864832,-151.0,0.00027671,7]
[384941606,1757629864842,-151.0,0.00027671,7]
[384941607,1757629864851,-276.25185,0.00027671,7]
[384941608,1757629864862,-151.0,0.00027671,7]
[384941609,1757629864871,-151.0,0.00027671,7]
[384941610,1757629864881,-276.25185,0.00027671,7]
[384941611,1757629864890,-185.584307,0.00027671,7]
[384941612,1757629864900,-1150.57,0.00027671,7]
[384941613,1757629864910,-400.0,0.00027671,7]
[384941614,1757629864921,-151.0,0.00027671,7]
[384941615,1757629864931,-1225.404666,0.00027671,7]
[384941616,1757629864941,-151.0,0.00027671,7]
[384941617,1757629864951,-1225.404666,0.00027671,7]
[384941618,1757629864961,-2153.09,0.00027671,7]
[384941619,1757629864970,-400.0,0.00027671,7]
[384941620,1757629864979,-400.0,0.00027671,7]
[384941621,1757629864989,-1225.404666,0.00027671,7]
[384941622,1757629864999,-1058.95,0.00027671,7]
[384941623,1757629865009,-155.98913653,0.00027671,2]
[384941624,1757629865018,-1225.404666,0.00027671,7]
[384941625,1757629865028,-151.0,0.00027671,7]
[384941626,1757629865037,-151.0,0.00027671,7]
[384941627,1757629865046,-188.726116,0.00027671,7]
[384941628,1757629865055,-151.0,0.00027671,7]
[384941629,1757629865065,-647.2,0.00027671,7]
[384941630,1757629865075,-151.0,0.00027671,7]
[384941631,1757629865084,-1225.404666,0.00027671,7]
[384941632,1757629865093,-400.0,0.00027671,7]
[384941633,1757629865103,-1225.404666,0.00027671,7]
[384941634,1757629865113,-400.0,0.00027671,2]
[384941635,1757629865122,-151.0,0.00027671,7]
[384941636,1757629865132,-151.0,0.00027671,7]
[384941637,1757629865142,-1181.46,0.00027671,7]
[384941638,1757629865151,-1017.32,0.00027671,7]
[384941639,1757629865160,-151.0,0.00027671,7]
[384941640,1757629865169,-400.0,0.00027671,7]
[384941641,1757629865541,-151.0,0.00027671,7]
[384941642,1757629865551,-558.42,0.00027671,7]
[384941643,1757629865560,-158.523326,0.00027671,7]
[384941644,1757629865572,-1773.73997,0.00027671,7]
[384941645,1757629865581,-400.0,0.00027671,7]
[384941646,1757629865593,-1773.73997,0.00027671,7]
[384941647,1757629865603,-3676.220185,0.00027671,7]
[384941648,1757629865614,-151.0,0.00027671,7]
[384941649,1757629865624,-3676.220185,0.00027671,7]
[384941650,1757629865633,-274.381635,0.00027671,7]
[384941651,1757629865643,-1773.73997,0.00027671,7]
[384941652,1757629865652,-400.0,0.00027671,7]
[384941653,1757629865661,-1773.73997,0.00027671,7]
[384941654,1757629865671,-3676.220185,0.00027671,7]
[384941655,1757629865680,-3676.220185,0.00027671,7]
[384941656,1757629865690,-1311.46,0.00027671,7]
[384941657,1757629865699,-400.0,0.00027671,7]
[384941658,1757629865709,-400.0,0.00027671,7]
[384941659,1757629865718,-1773.73997,0.00027671,7]
[384941660,1757629865727,-1773.73997,0.00027671,7]
[384941661,1757629865737,-3676.220185,0.00027671,7]
[384941662,1757629865746,-400.0,0.00027671,7]
[384941663,1757629865756,-3676.220185,0.00027671,7]
[384941664,1757629865765,-1773.73997,0.00027671,7]
[384941665,1757629865774,-400.0,0.00027671,7]
[384941666,1757629865783,-400.0,0.00027671,7]
[384941667,1757629865792,-1773.73997,0.00027671,7]
[384941668,1757629865802,-3676.220185,0.00027671,7]
[384941669,1757629865811,-151.0,0.00027671,7]
[384941670,1757629865821,-3676.220185,0.00027671,7]
[384941671,1757629865830,-151.0,0.00027671,7]
[384941672,1757629865840,-151.0,0.00027671,7]
[384941673,1757629865849,-400.0,0.00027671,7]
[384941674,1757629865858,-151.0,0.00027671,7]
[384941675,1757629865869,-151.0,0.00027671,7]
[384941676,1757629865879,-151.0,0.00027671,7]
[384941677,1757629865888,-1460.53,0.00027671,7]
[384941678,1757629865898,-400.0,0.00027671,7]
[384941679,1757629865907,-972.49,0.00027671,7]
[384941680,1757629865917,-400.0,0.00027671,7]
[384941681,1757629865926,-243.85110157,0.00027671,7]
[384941682,1757629865935,-1012.01,0.00027671,7]
[384941683,1757629865944,-1579.32,0.00027671,7]
[384941684,1757629865954,-495.14,0.00027671,7]
[384941685,1757629865963,-879.55,0.00027671,7]
[384941686,1757629865972,-739.96,0.00027671,7]
[384941687,1757629865982,-2386.39,0.00027671,7]
[384941688,1757629865991,-526.83,0.00027671,7]
[384941689,1757629866000,-604.51,0.00027671,7]
[384941690,1757629866010,-400.0,0.00027671,7]
[384941691,1757629866019,-1113.84,0.00027671,7]
[384941692,1757629866028,-1602.15,0.00027671,7]
[384941693,1757629866038,-909.55,0.00027671,7]
[384941694,1757629866047,-400.0,0.00027671,7]
[384941695,1757629866056,-400.0,0.00027671,7]
[384941696,1757629866067,-1244.01,0.00027671,7]
[384941697,1757629866076,-400.0,0.00027671,7]
[384941698,1757629866085,-1188.64,0.00027671,7]
[384941699,1757629866094,-160.0,0.00027671,14]
[384941700,1757629866103,-1097.38,0.00027671,7]
[384941701,1757629866114,-2113.75,0.00027671,7]
[384941702,1757629866123,-400.0,0.00027671,7]
[384941703,1757629866132,-1211.35,0.00027671,7]
[384941704,1757629866142,-151.0,0.00027671,7]
[384941705,1757629866151,-151.0,0.00027671,7]
[384941706,1757629866161,-1271.43,0.00027671,7]
[384941707,1757629866170,-1206.01,0.00027671,7]
[384941708,1757629866179,-461.77,0.00027671,7]
[384941709,1757629866188,-957.5,0.00027671,7]
[384941710,1757629866198,-400.0,0.00027671,7]
[384941711,1757629866207,-458.66,0.00027671,7]
[384941712,1757629866217,-1089.06,0.00027671,7]
[384941713,1757629866226,-152.02258,0.00027671,7]
[384941714,1757629866235,-400.0,0.00027671,7]
[384941715,1757629866244,-181.779338,0.00027671,7]
[384941716,1757629866253,-181.779338,0.00027671,7]
[384941717,1757629866262,-2056.95,0.00027671,7]
[384941718,1757629866271,-300.0,0.00027671,7]
[384941719,1757629866282,-400.0,0.00027671,7]
[384941720,1757629866293,-181.779338,0.00027671,7]
[384941721,1757629866303,-181.779338,0.00027671,7]
[384941722,1757629866313,-400.0,0.00027671,7]
[384941723,1757629866322,-181.779338,0.00027671,7]
[384941724,1757629866332,-181.779338,0.00027671,7]
[384941725,1757629866342,-895.96,0.00027671,7]
[384941726,1757629866351,-181.779338,0.00027671,7]
[384941727,1757629866361,-400.0,0.00027671,7]
[384941728,1757629866371,-181.779338,0.00027671,7]
[384941729,1757629866380,-400.0,0.00027671,7]
[384941730,1757629866389,-500.0,0.00027671,2]
[384941731,1757629866398,-430.71,0.00027671,7]
[384941732,1757629866407,-957.34,0.00027671,7]
[384941733,1757629866417,-964.83,0.00027671,7]
[384941734,1757629866427,-2419.66,0.00027671,7]
[384941735,1757629866436,-403.41,0.00027671,7]
[384941736,1757629866446,-400.0,0.00027671,7]